[Event "*** Titled Tuesday 3|2 Blitz"]
[Site "Chess.com"]
[Date "2016.10.04"]
[Round "7"]
[White "Iball95"]
[Black "Wolverine_master"]
[Result "1-0"]
[WhiteElo "2516"]
[BlackElo "2064"]
[TimeControl "180+2"]
[EndTime "12:24:54 PDT"]
[Termination "Iball95 won by resignation"]

1. d4 {[%clk 0:03:01.9]} 1... Nf6 {[%clk 0:02:57.3]} 2. c4 {[%clk 0:03:03.2]}
2... c5 {[%clk 0:02:57.7]} 3. d5 {[%clk 0:03:04.1]} 3... b5 {[%clk 0:02:58.5]}
4. cxb5 {[%clk 0:03:05.5]} 4... a6 {[%clk 0:02:59.7]} 5. bxa6 {[%clk 0:03:07.4]}
5... Bxa6 {[%clk 0:03:01.2]} 6. Nc3 {[%clk 0:03:07.4]} 6... d6 {[%clk
0:03:02.6]} 7. e4 {[%clk 0:03:08.8]} 7... Bxf1 {[%clk 0:03:02.4]} 8. Kxf1 {[%clk
0:03:10.7]} 8... g6 {[%clk 0:03:03.7]} 9. g3 {[%clk 0:03:10.5]} 9... Bg7 {[%clk
0:03:04]} 10. Kg2 {[%clk 0:03:12]} 10... Nbd7 {[%clk 0:03:04.9]} 11. Nf3 {[%clk
0:03:13.1]} 11... O-O {[%clk 0:03:06.4]} 12. Bd2 {[%clk 0:03:07.3]} 12... Qb6
{[%clk 0:03:02]} 13. Qc2 {[%clk 0:02:58.2]} 13... Rfb8 {[%clk 0:03:00.1]} 14.
Rhb1 {[%clk 0:02:47.3]} 14... Ng4 {[%clk 0:02:57.6]} 15. a4 {[%clk 0:02:44.6]}
15... c4 {[%clk 0:02:53.1]} 16. Be1 {[%clk 0:02:40.9]} 16... Nc5 {[%clk
0:02:48.6]} 17. h3 {[%clk 0:02:38.8]} 17... Ne5 {[%clk 0:02:42.9]} 18. Nxe5
{[%clk 0:02:40.3]} 18... Bxe5 {[%clk 0:02:44.7]} 19. Nb5 {[%clk 0:02:26.3]}
19... Nb3 {[%clk 0:01:52.5]} 20. Ra3 {[%clk 0:02:26.1]} 20... Rc8 {[%clk
0:01:51.4]} 21. Bc3 {[%clk 0:02:23.6]} 21... Bxc3 {[%clk 0:01:24.7]} 22. Nxc3
{[%clk 0:01:47.4]} 22... Nd4 {[%clk 0:00:40.6]} 23. Qd2 {[%clk 0:01:44.3]} 23...
Qc5 {[%clk 0:00:20.4]} 24. Rd1 {[%clk 0:01:34.1]} 24... Nb3 {[%clk 0:00:19.5]}
25. Qc2 {[%clk 0:01:35.7]} 25... Nd4 {[%clk 0:00:19.8]} 26. Qd2 {[%clk 0:01:35]}
26... Nb3 {[%clk 0:00:20.3]} 27. Qe2 {[%clk 0:01:35.7]} 27... Rcb8 {[%clk
0:00:17]} 28. Nb5 {[%clk 0:01:30.3]} 28... Qb4 {[%clk 0:00:11.7]} 29. Nc3 {[%clk
0:01:27]} 29... Nc5 {[%clk 0:00:10.5]} 30. Qc2 {[%clk 0:01:28.5]} 30... Ra7
{[%clk 0:00:09.1]} 31. Rd4 {[%clk 0:01:26.4]} 31... Qxb2 {[%clk 0:00:06.1]} 32.
Qxb2 {[%clk 0:01:27.2]} 32... Rxb2 {[%clk 0:00:08]} 33. Rxc4 {[%clk 0:01:27.3]}
33... Nd3 {[%clk 0:00:09.5]} 34. Nd1 {[%clk 0:01:28.2]} 34... Nc5 {[%clk
0:00:06.3]} 35. Nxb2 {[%clk 0:01:28.6]} 1-0

[Event "*** Titled Tuesday 3|2 Blitz"]
[Site "Chess.com"]
[Date "2016.10.04"]
[Round "7"]
[White "Lukianoo"]
[Black "Paralinch"]
[Result "1-0"]
[WhiteElo "2734"]
[BlackElo "2575"]
[TimeControl "180+2"]
[EndTime "12:25:29 PDT"]
[Termination "Lukianoo won by checkmate"]

1. e4 {[%clk 0:03:01.9]} 1... c6 {[%clk 0:03:01.1]} 2. d4 {[%clk 0:02:55.7]}
2... d5 {[%clk 0:03:02.4]} 3. f3 {[%clk 0:02:54.5]} 3... e6 {[%clk 0:03:03.4]}
4. Nc3 {[%clk 0:02:47.4]} 4... Bb4 {[%clk 0:03:04]} 5. Qd3 {[%clk 0:02:44.9]}
5... Ne7 {[%clk 0:03:01.6]} 6. a3 {[%clk 0:02:42.1]} 6... Ba5 {[%clk 0:02:50.8]}
7. Ne2 {[%clk 0:02:39.1]} 7... O-O {[%clk 0:02:51]} 8. Bf4 {[%clk 0:02:33.1]}
8... b5 {[%clk 0:02:48.2]} 9. h4 {[%clk 0:02:29.9]} 9... Bc7 {[%clk 0:02:48.6]}
10. Bxc7 {[%clk 0:02:24.8]} 10... Qxc7 {[%clk 0:02:49.1]} 11. h5 {[%clk
0:02:24.4]} 11... h6 {[%clk 0:02:50]} 12. g4 {[%clk 0:02:21.5]} 12... f6 {[%clk
0:02:45.6]} 13. f4 {[%clk 0:02:15.1]} 13... a5 {[%clk 0:02:29.3]} 14. g5 {[%clk
0:02:01.1]} 14... fxg5 {[%clk 0:02:29.3]} 15. fxg5 {[%clk 0:02:01.2]} 15... hxg5
{[%clk 0:02:23.9]} 16. h6 {[%clk 0:01:55.7]} 16... g6 {[%clk 0:02:21.2]} 17. Qd2
{[%clk 0:01:51.6]} 17... Ba6 {[%clk 0:02:07.5]} 18. Qxg5 {[%clk 0:01:43.8]}
18... b4 {[%clk 0:02:08.5]} 19. h7+ {[%clk 0:01:39]} 19... Kh8 {[%clk
0:02:07.7]} 20. Na4 {[%clk 0:01:36.8]} 20... dxe4 {[%clk 0:01:50.7]} 21. Nc5
{[%clk 0:01:31.7]} 21... Rf5 {[%clk 0:01:51.2]} 22. Qh6 {[%clk 0:01:25.9]} 22...
Nd5 {[%clk 0:01:44.2]} 23. Qxg6 {[%clk 0:01:21.7]} 23... Qf7 {[%clk 0:01:36.7]}
24. Qg8+ {[%clk 0:00:56.8]} 24... Qxg8 {[%clk 0:01:35.5]} 25. hxg8=Q+ {[%clk
0:00:58.7]} 25... Kxg8 {[%clk 0:01:37.2]} 26. Bh3 {[%clk 0:01:00.2]} 26... Rf6
{[%clk 0:01:12.3]} 27. Bxe6+ {[%clk 0:00:53.6]} 27... Kg7 {[%clk 0:01:13.6]} 28.
Ng3 {[%clk 0:00:49.5]} 28... Nf4 {[%clk 0:01:09]} 29. Nf5+ {[%clk 0:00:43.6]}
29... Kg6 {[%clk 0:00:52.5]} 30. Rh6+ {[%clk 0:00:36]} 30... Kg5 {[%clk
0:00:53.9]} 31. Nxe4+ {[%clk 0:00:35.7]} 31... Kg4 {[%clk 0:00:55.4]} 32. Nxf6+
{[%clk 0:00:24]} 32... Kf3 {[%clk 0:00:56.8]} 33. Rh2 {[%clk 0:00:15.3]} 33...
Ng2+ {[%clk 0:00:49.9]} 34. Kd2 {[%clk 0:00:14.4]} 34... Ra7 {[%clk 0:00:49.5]}
35. Rh3+ {[%clk 0:00:12.2]} 35... Kf2 {[%clk 0:00:46]} 36. Ne4# {[%clk
0:00:09.8]} 1-0

[Event "*** Titled Tuesday 3|2 Blitz"]
[Site "Chess.com"]
[Date "2016.10.04"]
[Round "7"]
[White "chessbia"]
[Black "Kawhi_Leonard2"]
[Result "1-0"]
[WhiteElo "2045"]
[BlackElo "1982"]
[TimeControl "180+2"]
[EndTime "12:25:38 PDT"]
[Termination "chessbia won on time"]

1. d4 {[%clk 0:03:01.9]} 1... Nf6 {[%clk 0:03:00]} 2. c4 {[%clk 0:03:03.8]} 2...
e6 {[%clk 0:03:01.4]} 3. Nc3 {[%clk 0:03:05.2]} 3... Bb4 {[%clk 0:03:02.4]} 4.
Qc2 {[%clk 0:03:06.9]} 4... Nc6 {[%clk 0:03:03.3]} 5. Nf3 {[%clk 0:03:07.2]}
5... d6 {[%clk 0:03:01]} 6. Bg5 {[%clk 0:03:08]} 6... h6 {[%clk 0:02:59.2]} 7.
Bh4 {[%clk 0:03:08.6]} 7... g5 {[%clk 0:02:59.3]} 8. Bg3 {[%clk 0:03:09.3]} 8...
g4 {[%clk 0:03:00.4]} 9. d5 {[%clk 0:03:09.7]} 9... exd5 {[%clk 0:02:42.3]} 10.
cxd5 {[%clk 0:03:04.8]} 10... Nxd5 {[%clk 0:02:43.1]} 11. Qe4+ {[%clk
0:03:04.9]} 11... Be6 {[%clk 0:02:43.4]} 12. Bh4 {[%clk 0:02:54.5]} 12... Qd7
{[%clk 0:02:30.5]} 13. Nd2 {[%clk 0:02:35]} 13... Nxc3 {[%clk 0:02:29.5]} 14.
bxc3 {[%clk 0:02:35.3]} 14... Bxc3 {[%clk 0:02:30.5]} 15. Rb1 {[%clk 0:02:35.6]}
15... b6 {[%clk 0:01:30.1]} 16. e3 {[%clk 0:02:32]} 16... f5 {[%clk 0:01:24.7]}
17. Qd3 {[%clk 0:02:28.8]} 17... Bg7 {[%clk 0:01:22.3]} 18. Be2 {[%clk
0:02:14.1]} 18... Ne5 {[%clk 0:01:22.6]} 19. Qa6 {[%clk 0:02:08.1]} 19... Bd5
{[%clk 0:01:11.6]} 20. O-O {[%clk 0:01:56.1]} 20... O-O {[%clk 0:00:56]} 21. Bb5
{[%clk 0:01:56.1]} 21... c6 {[%clk 0:00:56.1]} 22. Be2 {[%clk 0:01:54.7]} 22...
Ng6 {[%clk 0:00:56.4]} 23. Bg3 {[%clk 0:01:53.8]} 23... Rae8 {[%clk 0:00:56.7]}
24. Rfd1 {[%clk 0:01:52.4]} 24... f4 {[%clk 0:00:53.8]} 25. exf4 {[%clk
0:01:47.6]} 25... Nxf4 {[%clk 0:00:54.6]} 26. Bf1 {[%clk 0:01:45.7]} 26... Be5
{[%clk 0:00:49.1]} 27. Nc4 {[%clk 0:01:41]} 27... Bg7 {[%clk 0:00:36.9]} 28. Rd2
{[%clk 0:01:31.1]} 28... Qf7 {[%clk 0:00:37.2]} 29. Nxd6 {[%clk 0:01:29.2]}
29... Qf6 {[%clk 0:00:30]} 30. Nxe8 {[%clk 0:01:26]} 30... Rxe8 {[%clk
0:00:30.9]} 31. Qxa7 {[%clk 0:01:21.6]} 31... b5 {[%clk 0:00:29.6]} 32. a4
{[%clk 0:01:17.1]} 32... bxa4 {[%clk 0:00:27.8]} 33. Qxa4 {[%clk 0:01:15.2]}
33... Ng6 {[%clk 0:00:28.3]} 34. Qxg4 {[%clk 0:01:12.1]} 34... Rf8 {[%clk
0:00:23.5]} 35. Re1 {[%clk 0:00:58.3]} 35... Kh8 {[%clk 0:00:20.9]} 36. h4
{[%clk 0:00:57.1]} 36... Ne7 {[%clk 0:00:08]} 37. Be5 {[%clk 0:00:51.1]} 1-0

[Event "*** Titled Tuesday 3|2 Blitz"]
[Site "Chess.com"]
[Date "2016.10.04"]
[Round "7"]
[White "wonderfultime"]
[Black "daro94"]
[Result "1-0"]
[WhiteElo "2706"]
[BlackElo "2649"]
[TimeControl "180+2"]
[EndTime "12:26:04 PDT"]
[Termination "wonderfultime won on time"]

1. d4 {[%clk 0:03:01.9]} 1... Nf6 {[%clk 0:03:01]} 2. c4 {[%clk 0:03:03.2]} 2...
g6 {[%clk 0:03:02.6]} 3. Nc3 {[%clk 0:03:03.8]} 3... d5 {[%clk 0:03:03.9]} 4.
cxd5 {[%clk 0:03:01.8]} 4... Nxd5 {[%clk 0:03:05.2]} 5. e4 {[%clk 0:03:03.4]}
5... Nxc3 {[%clk 0:03:06.6]} 6. bxc3 {[%clk 0:03:05.3]} 6... Bg7 {[%clk
0:03:07.6]} 7. Qa4+ {[%clk 0:03:06.5]} 7... Qd7 {[%clk 0:03:06.9]} 8. Qa3 {[%clk
0:03:05.4]} 8... b6 {[%clk 0:03:01.1]} 9. Nf3 {[%clk 0:02:56.5]} 9... c5 {[%clk
0:02:52.5]} 10. Be2 {[%clk 0:02:35.2]} 10... O-O {[%clk 0:02:34.2]} 11. O-O
{[%clk 0:02:28]} 11... cxd4 {[%clk 0:02:22.8]} 12. cxd4 {[%clk 0:02:29.1]} 12...
Nc6 {[%clk 0:02:24.3]} 13. Bb5 {[%clk 0:02:23.2]} 13... a6 {[%clk 0:01:58.5]}
14. Bxc6 {[%clk 0:01:26]} 14... Qxc6 {[%clk 0:01:59.2]} 15. Re1 {[%clk
0:01:27.6]} 15... Bb7 {[%clk 0:01:16]} 16. Bb2 {[%clk 0:00:58.6]} 16... Qd6
{[%clk 0:01:04.3]} 17. Qb3 {[%clk 0:00:55.4]} 17... Rfc8 {[%clk 0:00:57.2]} 18.
Rad1 {[%clk 0:00:41.6]} 18... b5 {[%clk 0:00:49.1]} 19. d5 {[%clk 0:00:42.1]}
19... Bxb2 {[%clk 0:00:49.7]} 20. Qxb2 {[%clk 0:00:44]} 20... Rc4 {[%clk
0:00:44.1]} 21. Ne5 {[%clk 0:00:44.9]} 21... Rb4 {[%clk 0:00:41.3]} 22. Qa1
{[%clk 0:00:44.9]} 22... f6 {[%clk 0:00:29.1]} 23. Nf3 {[%clk 0:00:31.4]} 23...
Qf4 {[%clk 0:00:22.9]} 24. Rd4 {[%clk 0:00:29.2]} 24... Rxd4 {[%clk 0:00:16.4]}
25. Qxd4 {[%clk 0:00:31.1]} 25... Rc8 {[%clk 0:00:18.1]} 26. Qb6 {[%clk
0:00:31.7]} 26... Qc7 {[%clk 0:00:19.1]} 27. Qe6+ {[%clk 0:00:32.8]} 27... Kg7
{[%clk 0:00:16.7]} 28. e5 {[%clk 0:00:34.2]} 28... Qd8 {[%clk 0:00:08.4]} 29.
exf6+ {[%clk 0:00:27.3]} 29... exf6 {[%clk 0:00:09.8]} 30. d6 {[%clk 0:00:28.9]}
30... Bxf3 {[%clk 0:00:06.2]} 31. gxf3 {[%clk 0:00:30.8]} 31... Qf8 {[%clk
0:00:04.4]} 32. Qd7+ {[%clk 0:00:29.7]} 32... Kh8 {[%clk 0:00:02.2]} 33. Re7
{[%clk 0:00:31.3]} 33... Rd8 {[%clk 0:00:03.4]} 34. Qe6 {[%clk 0:00:28]} 34...
Qh6 {[%clk 0:00:03.1]} 35. Qxf6+ {[%clk 0:00:29]} 35... Kg8 {[%clk 0:00:04.2]}
36. d7 {[%clk 0:00:23.8]} 36... Rf8 {[%clk 0:00:03]} 37. Qxf8+ {[%clk
0:00:22.6]} 37... Qxf8 {[%clk 0:00:03]} 38. Re8 {[%clk 0:00:24.1]} 1-0

[Event "*** Titled Tuesday 3|2 Blitz"]
[Site "Chess.com"]
[Date "2016.10.04"]
[Round "7"]
[White "platy3"]
[Black "maciek_92"]
[Result "1-0"]
[WhiteElo "2732"]
[BlackElo "2602"]
[TimeControl "180+2"]
[EndTime "12:26:06 PDT"]
[Termination "platy3 won by resignation"]

1. e4 {[%clk 0:03:02]} 1... c5 {[%clk 0:03:00.3]} 2. Nf3 {[%clk 0:03:03.2]} 2...
e6 {[%clk 0:03:01.2]} 3. d4 {[%clk 0:03:04.3]} 3... cxd4 {[%clk 0:03:02.5]} 4.
Nxd4 {[%clk 0:03:05.9]} 4... Nc6 {[%clk 0:03:01.4]} 5. Nc3 {[%clk 0:03:06.9]}
5... a6 {[%clk 0:03:00.9]} 6. Nxc6 {[%clk 0:03:03.9]} 6... bxc6 {[%clk
0:03:01.2]} 7. Bd3 {[%clk 0:03:05.2]} 7... d5 {[%clk 0:03:01.9]} 8. O-O {[%clk
0:03:06.3]} 8... Nf6 {[%clk 0:03:00.6]} 9. Qe2 {[%clk 0:03:07.3]} 9... Be7
{[%clk 0:03:00.8]} 10. b3 {[%clk 0:03:07.8]} 10... O-O {[%clk 0:03:00.4]} 11.
Bb2 {[%clk 0:03:09.1]} 11... Qc7 {[%clk 0:02:53.1]} 12. f4 {[%clk 0:03:09.7]}
12... c5 {[%clk 0:02:45.7]} 13. Kh1 {[%clk 0:02:50.6]} 13... Bb7 {[%clk
0:02:37.2]} 14. Rae1 {[%clk 0:02:50.1]} 14... c4 {[%clk 0:02:23.3]} 15. bxc4
{[%clk 0:02:50.7]} 15... dxe4 {[%clk 0:02:24.6]} 16. Nxe4 {[%clk 0:02:49.1]}
16... Nxe4 {[%clk 0:02:24.4]} 17. Bxe4 {[%clk 0:02:50.4]} 17... Bxe4 {[%clk
0:02:25.3]} 18. Qxe4 {[%clk 0:02:51.7]} 18... Bb4 {[%clk 0:02:02]} 19. Re3
{[%clk 0:02:50.2]} 19... Rfd8 {[%clk 0:01:44.7]} 20. Rh3 {[%clk 0:02:49.6]}
20... g6 {[%clk 0:01:29.6]} 21. f5 {[%clk 0:02:51]} 21... e5 {[%clk 0:00:25.9]}
22. Bxe5 {[%clk 0:02:43.4]} 22... Qe7 {[%clk 0:00:13.4]} 23. fxg6 {[%clk
0:02:44.3]} 23... f6 {[%clk 0:00:14.8]} 24. Rxh7 {[%clk 0:01:33.9]} 24... Qxe5
{[%clk 0:00:13.7]} 25. Rh8+ {[%clk 0:01:35.4]} 25... Kg7 {[%clk 0:00:07.5]} 26.
Rh7+ {[%clk 0:01:36.9]} 26... Kg8 {[%clk 0:00:08.7]} 27. Qh4 {[%clk 0:01:38.6]}
27... f5 {[%clk 0:00:08]} 28. Rb7 {[%clk 0:01:19]} 28... Qh8 {[%clk 0:00:04]}
29. Qxh8+ {[%clk 0:01:05.2]} 29... Kxh8 {[%clk 0:00:05.9]} 30. Rxb4 {[%clk
0:01:06.6]} 30... Kg7 {[%clk 0:00:07.5]} 31. Rb6 {[%clk 0:01:06.4]} 31... Rf8
{[%clk 0:00:08.4]} 32. h4 {[%clk 0:01:06]} 32... Rac8 {[%clk 0:00:09]} 33. Rf4
{[%clk 0:01:03.8]} 33... Rf6 {[%clk 0:00:04.7]} 34. Rxf6 {[%clk 0:01:01.2]}
34... Kxf6 {[%clk 0:00:06.6]} 35. h5 {[%clk 0:01:02.8]} 35... Kg5 {[%clk
0:00:07.6]} 36. g7 {[%clk 0:00:56.6]} 36... Rg8 {[%clk 0:00:05.6]} 37. Rf3
{[%clk 0:00:54]} 37... Kxh5 {[%clk 0:00:03.4]} 38. Rxf5+ {[%clk 0:00:53.2]}
38... Kg6 {[%clk 0:00:03.5]} 39. Rf3 {[%clk 0:00:54.4]} 39... Kh7 {[%clk
0:00:02.1]} 40. Rh3+ {[%clk 0:00:55.2]} 40... Kg6 {[%clk 0:00:03.3]} 41. Rg3+
{[%clk 0:00:56.5]} 41... Kf7 {[%clk 0:00:04.6]} 42. Kg1 {[%clk 0:00:57.9]} 42...
a5 {[%clk 0:00:06.2]} 43. Kf2 {[%clk 0:00:59]} 43... Ke6 {[%clk 0:00:08.1]} 44.
Ke3 {[%clk 0:01:00]} 44... Ke5 {[%clk 0:00:09.7]} 45. Kd3 {[%clk 0:00:58.8]}
45... Kd6 {[%clk 0:00:11]} 46. Kd4 {[%clk 0:00:59.8]} 46... Kc6 {[%clk
0:00:12.3]} 47. Rg6+ {[%clk 0:01:01.1]} 47... Kd7 {[%clk 0:00:13.5]} 48. c5
{[%clk 0:01:02.4]} 48... Ke7 {[%clk 0:00:14.8]} 49. Kc4 {[%clk 0:01:03.6]} 49...
Kf7 {[%clk 0:00:16.7]} 1-0

[Event "*** Titled Tuesday 3|2 Blitz"]
[Site "Chess.com"]
[Date "2016.10.04"]
[Round "7"]
[White "keisyzrk"]
[Black "QuintilianoR"]
[Result "1-0"]
[WhiteElo "2293"]
[BlackElo "2399"]
[TimeControl "180+2"]
[EndTime "12:26:18 PDT"]
[Termination "keisyzrk won by resignation"]

1. d4 {[%clk 0:03:02]} 1... d5 {[%clk 0:02:59.4]} 2. c4 {[%clk 0:03:02.9]} 2...
e6 {[%clk 0:03:00.9]} 3. Nc3 {[%clk 0:03:04.2]} 3... c6 {[%clk 0:03:02.4]} 4.
Nf3 {[%clk 0:03:03.6]} 4... dxc4 {[%clk 0:03:03.1]} 5. e3 {[%clk 0:03:03.8]}
5... b5 {[%clk 0:03:04.2]} 6. a4 {[%clk 0:03:01.6]} 6... Bb4 {[%clk 0:03:04.9]}
7. Bd2 {[%clk 0:03:01.2]} 7... a5 {[%clk 0:03:05.3]} 8. axb5 {[%clk 0:03:01.1]}
8... Bxc3 {[%clk 0:03:06.5]} 9. Bxc3 {[%clk 0:03:01.9]} 9... cxb5 {[%clk
0:03:08.4]} 10. b3 {[%clk 0:02:59.7]} 10... Bb7 {[%clk 0:03:09.2]} 11. d5 {[%clk
0:02:50.9]} 11... Nf6 {[%clk 0:03:09.7]} 12. bxc4 {[%clk 0:02:51.6]} 12... b4
{[%clk 0:03:11]} 13. Qa4+ {[%clk 0:02:52.1]} 13... Qd7 {[%clk 0:02:56.1]} 14.
Bxf6 {[%clk 0:02:52.9]} 14... Qxa4 {[%clk 0:02:55]} 15. Rxa4 {[%clk 0:02:53.2]}
15... gxf6 {[%clk 0:02:56.9]} 16. e4 {[%clk 0:02:44.1]} 16... Nd7 {[%clk
0:02:55.8]} 17. Nd4 {[%clk 0:02:35.9]} 17... Nc5 {[%clk 0:02:55.6]} 18. Ra1
{[%clk 0:02:36.2]} 18... Nxe4 {[%clk 0:02:50.2]} 19. Bd3 {[%clk 0:02:34.7]}
19... Nc5 {[%clk 0:02:50.7]} 20. Kd2 {[%clk 0:02:36.2]} 20... a4 {[%clk
0:02:43.2]} 21. Rhe1 {[%clk 0:02:30.6]} 21... Kd7 {[%clk 0:02:40.8]} 22. Rab1
{[%clk 0:02:19.6]} 22... b3 {[%clk 0:02:39.3]} 23. dxe6+ {[%clk 0:02:12.4]}
23... fxe6 {[%clk 0:02:38.9]} 24. Kc3 {[%clk 0:02:08.1]} 24... Rhd8 {[%clk
0:02:05.4]} 25. Nxe6 {[%clk 0:02:00.1]} 25... Nxe6 {[%clk 0:02:04.2]} 26. Bf5
{[%clk 0:02:01]} 26... Ra6 {[%clk 0:01:59.4]} 27. Rxe6 {[%clk 0:01:39.2]} 27...
Rxe6 {[%clk 0:01:55.8]} 28. Rd1+ {[%clk 0:01:40.7]} 28... Kc7 {[%clk 0:01:46.1]}
29. Rxd8 {[%clk 0:01:41.6]} 29... Re5 {[%clk 0:01:30.6]} 30. Rd7+ {[%clk
0:01:39.1]} 30... Kc6 {[%clk 0:01:30.1]} 31. Rd5 {[%clk 0:01:35.8]} 31... Rxd5
{[%clk 0:01:25.1]} 32. cxd5+ {[%clk 0:01:37]} 32... Kc5 {[%clk 0:01:23.2]} 33.
Bxh7 {[%clk 0:01:27.2]} 33... Bxd5 {[%clk 0:01:23.3]} 34. f3 {[%clk 0:01:17.1]}
34... a3 {[%clk 0:01:23.8]} 35. Bf5 {[%clk 0:01:11.9]} 35... a2 {[%clk
0:00:34.5]} 36. Kb2 {[%clk 0:01:10.2]} 36... Kb4 {[%clk 0:00:33.9]} 37. h4
{[%clk 0:01:08.8]} 37... a1=Q+ {[%clk 0:00:16.8]} 38. Kxa1 {[%clk 0:01:09.4]}
38... Ka3 {[%clk 0:00:18.1]} 39. Kb1 {[%clk 0:00:51.4]} 39... b2 {[%clk
0:00:19]} 40. Kc2 {[%clk 0:00:50]} 40... Ka2 {[%clk 0:00:16.7]} 41. Kc3 {[%clk
0:00:50.9]} 41... b1=Q {[%clk 0:00:15]} 42. Bxb1+ {[%clk 0:00:52]} 42... Kxb1
{[%clk 0:00:16.9]} 43. Kd4 {[%clk 0:00:51.7]} 43... Bf7 {[%clk 0:00:15.8]} 44.
g4 {[%clk 0:00:50.6]} 44... Kc2 {[%clk 0:00:16.9]} 45. f4 {[%clk 0:00:51.8]}
45... Kd2 {[%clk 0:00:18]} 46. g5 {[%clk 0:00:52]} 46... fxg5 {[%clk 0:00:19]}
47. hxg5 {[%clk 0:00:53.6]} 47... Bg6 {[%clk 0:00:18.8]} 48. Ke5 {[%clk
0:00:54.7]} 48... Ke3 {[%clk 0:00:20.2]} 49. f5 {[%clk 0:00:54.5]} 1-0

[Event "*** Titled Tuesday 3|2 Blitz"]
[Site "Chess.com"]
[Date "2016.10.04"]
[Round "7"]
[White "Lupul_Cenusiu"]
[Black "Noukii"]
[Result "0-1"]
[WhiteElo "2373"]
[BlackElo "2609"]
[TimeControl "180+2"]
[EndTime "12:26:24 PDT"]
[Termination "Noukii won by checkmate"]

1. d4 {[%clk 0:03:02]} 1... d5 {[%clk 0:03:00.5]} 2. c4 {[%clk 0:03:01.6]} 2...
c6 {[%clk 0:03:02.2]} 3. e3 {[%clk 0:02:57.9]} 3... Nf6 {[%clk 0:03:03.7]} 4.
Nc3 {[%clk 0:02:58.2]} 4... e6 {[%clk 0:03:04.9]} 5. Nf3 {[%clk 0:02:58.7]} 5...
Nbd7 {[%clk 0:03:05]} 6. Qc2 {[%clk 0:02:57.5]} 6... Bd6 {[%clk 0:03:06.6]} 7.
b3 {[%clk 0:02:58.2]} 7... O-O {[%clk 0:03:07.1]} 8. Bb2 {[%clk 0:02:59.5]} 8...
e5 {[%clk 0:03:08.7]} 9. Be2 {[%clk 0:02:58.2]} 9... e4 {[%clk 0:03:03.9]} 10.
Nd2 {[%clk 0:02:58.6]} 10... Nb8 {[%clk 0:02:49.6]} 11. h3 {[%clk 0:02:58.3]}
11... Be6 {[%clk 0:02:50.5]} 12. O-O-O {[%clk 0:02:49.9]} 12... a6 {[%clk
0:02:47.8]} 13. c5 {[%clk 0:02:48.3]} 13... Be7 {[%clk 0:02:44.7]} 14. f3 {[%clk
0:02:47.9]} 14... exf3 {[%clk 0:02:41]} 15. gxf3 {[%clk 0:02:49]} 15... Nbd7
{[%clk 0:02:37.3]} 16. Bd3 {[%clk 0:02:46.7]} 16... b6 {[%clk 0:02:35.8]} 17.
cxb6 {[%clk 0:02:44.9]} 17... Nxb6 {[%clk 0:02:33.2]} 18. Rdg1 {[%clk 0:02:35]}
18... a5 {[%clk 0:02:31.8]} 19. a4 {[%clk 0:02:30.9]} 19... Rc8 {[%clk
0:02:31.3]} 20. Kb1 {[%clk 0:02:29.8]} 20... c5 {[%clk 0:02:29.7]} 21. Qd1
{[%clk 0:02:03.2]} 21... cxd4 {[%clk 0:02:21.9]} 22. exd4 {[%clk 0:02:04]} 22...
Nh5 {[%clk 0:02:09.7]} 23. Ne2 {[%clk 0:01:49]} 23... Qd6 {[%clk 0:02:01.4]} 24.
Nf1 {[%clk 0:01:32.2]} 24... Rb8 {[%clk 0:01:50.5]} 25. Nfg3 {[%clk 0:01:16.5]}
25... Nxg3 {[%clk 0:01:48.8]} 26. Nxg3 {[%clk 0:01:15.2]} 26... Nc4 {[%clk
0:01:35.7]} 27. Bxc4 {[%clk 0:01:02.4]} 27... dxc4 {[%clk 0:01:32.8]} 28. d5
{[%clk 0:01:03.4]} 28... Rxb3 {[%clk 0:01:31.5]} 29. Ne4 {[%clk 0:00:30.3]}
29... Rxb2+ {[%clk 0:01:21.2]} 30. Kxb2 {[%clk 0:00:30.9]} 30... Qa3+ {[%clk
0:01:07.1]} 31. Kc2 {[%clk 0:00:28.9]} 31... Qa2+ {[%clk 0:00:46.4]} 32. Kc3
{[%clk 0:00:29.5]} 32... Bb4+ {[%clk 0:00:44.9]} 33. Kd4 {[%clk 0:00:29.6]}
33... Qb2+ {[%clk 0:00:42.5]} 34. Ke3 {[%clk 0:00:27.6]} 34... Bd7 {[%clk
0:00:33.7]} 35. Qd4 {[%clk 0:00:20.2]} 35... Qxd4+ {[%clk 0:00:20.8]} 36. Kxd4
{[%clk 0:00:21]} 36... f5 {[%clk 0:00:17]} 37. Nc3 {[%clk 0:00:20.1]} 37... Rc8
{[%clk 0:00:16.1]} 38. Nb5 {[%clk 0:00:20.6]} 38... c3 {[%clk 0:00:14]} 39. Rc1
{[%clk 0:00:20.1]} 39... c2 {[%clk 0:00:14.2]} 40. Kd3 {[%clk 0:00:19.3]} 40...
f4 {[%clk 0:00:14.8]} 41. Nd4 {[%clk 0:00:20.3]} 41... Rc3+ {[%clk 0:00:15.1]}
42. Ke4 {[%clk 0:00:21.6]} 42... g5 {[%clk 0:00:14.9]} 43. Rxc2 {[%clk
0:00:21.9]} 43... Re3# {[%clk 0:00:16.1]} 0-1